Workbook

Sheet Лист1
A1: День 1. (Понедельник)
A3: Наименование блюда | B3: Масса порции,г | C3: Пищевые вещества,г | F3: Энергетическая ценность,ккал | G3: Витамины, мг | K3: Минеральные вещества, мг
C4: жиры | D4: белки | E4: углеводы | G4: В1 | H4: С | I4: А | J4: Е | K4: Ca | L4: P | M4: Mg | N4: Fe
A5: Завтрак
A6: Запенка из творога | B6: 200/25 | C6: 16.12 | D6: 18.28 | E6: 42.71 | F6: 438.01 | G6: 0.01 | H6: 0.44 | I6: 0.00 | J6: 0.00 | K6: 353.70 | L6: 373.60 | M6: 51.70 | N6: 2.15
A7: Чай с сахаром | B7: 200 | C7: 0.02 | D7: 0.06 | E7: 18.96 | F7: 55.82 | G7: 0.00 | H7: 0.02 | I7: 0.00 | J7: 0.00 | K7: 30.32 | L7: 0.00 | M7: 0.00 | N7: 0.26
A8: Хлеб пшеничный | B8: 30 | C8: 0.30 | D8: 2.37 | E8: 0.63 | F8: 70.14 | G8: 0.13 | H8: 0.00 | I8: 0.00 | J8: 0.00 | K8: 6.90 | L8: 0.00 | M8: 0.00 | N8: 0.73
A9: Масло сливочное | B9: 10 | C9: 4.56 | D9: 2.34 | E9: 0.04 | F9: 50.40 | G9: 0.05 | H9: 0.00 | I9: 0.00 | J9: 0.00 | K9: 10.23 | L9: 33.80 | M9: 4.20 | N9: 0.34
A10: Фрукты свежие (яблоко)1шт. | B10: 120 | C10: 0.50 | D10: 0.50 | E10: 16.80 | F10: 86.40 | G10: 0.00 | H10: 5.52 | I10: 0.36 | J10: 0.24 | K10: 9.20 | L10: 33.20 | M10: 6.00 | N10: 2.42
A11: Обед
A12: Салат из белокачанной капусты | B12: 100 | C12: 5.25 | D12: 1.31 | E12: 16.27 | F12: 79.69 | G12: 0.02 | H12: 28.85 | I12: 0.00 | J12: 5.43 | K12: 118.83 | L12: 97.77 | M12: 28.31 | N12: 0.50
A13: Рассольник ленинградский | B13: 250/6 | C13: 5.83 | D13: 2.64 | E13: 25.96 | F13: 234.06 | G13: 0.40 | H13: 6.71 | I13: 0.24 | J13: 0.53 | K13: 93.10 | L13: 78.38 | M13: 45.96 | N13: 1.71
A14: Плов | B14: 250 | C14: 22.31 | D14: 18.28 | E14: 36.11 | F14: 485.03 | G14: 0.17 | H14: 0.69 | I14: 0.33 | J14: 2.83 | K14: 99.46 | L14: 433.10 | M14: 35.28 | N14: 1.43
A15: Напиток из кураги | B15: 200 | C15: 0.00 | D15: 0.33 | E15: 35.39 | F15: 97.83 | G15: 0.00 | H15: 0.00 | I15: 0.00 | J15: 0.00 | K15: 1.40 | L15: 0.00 | M15: 0.00 | N15: 0.04
A16: Хлеб пшеничный | B16: 80 | C16: 0.40 | D16: 3.16 | E16: 20.32 | F16: 95.20 | G16: 0.06 | H16: 0.00 | I16: 0.00 | J16: 0.52 | K16: 11.20 | L16: 34.80 | M16: 13.20 | N16: 0.80
A17: Итого за день | C17: =SUM(C6:C16) -> 55.29 | D17: =SUM(D6:D16) -> 49.27 | E17: =SUM(E6:E16) -> 213.19 | F17: =SUM(F6:F16) -> 1692.58 | G17: 0.84 | H17: 42.23 | I17: 0.93 | J17: 9.55 | K17: 734.34 | L17: 1084.65 | M17: 184.65 | N17: 10.38
A19: День 2. (Вторник)
A21: Наименование блюда | B21: Масса порции,г | C21: Пищевые вещества,г | F21: Энергетическая ценность,ккал | G21: Витамины, мг | K21: Минеральные вещества, мг
C22: жиры | D22: белки | E22: углеводы | G22: В1 | H22: С | I22: А | J22: Е | K22: Ca | L22: P | M22: Mg | N22: Fe
A23: Завтрак
A24: Каша молочна "Дружба" | B24: 200 | C24: 12.06 | D24: 8.86 | E24: 59.36 | F24: 320.00 | G24: 0.12 | H24: 4.88 | I24: 0.00 | J24: 0.00 | K24: 333.70 | L24: 346.30 | M24: 38.70 | N24: 2.16
A25: Чай с лимоном | B25: 200 | C25: 0.02 | D25: 0.06 | E25: 8.96 | F25: 95.82 | G25: 0.00 | H25: 0.02 | I25: 0.00 | J25: 0.00 | K25: 20.32 | L25: 0.00 | M25: 0.00 | N25: 0.26
A26: Хлеб пшеничный | B26: 30 | C26: 0.30 | D26: 2.37 | E26: 0.63 | F26: 70.14 | G26: 0.03 | H26: 0.00 | I26: 0.00 | J26: 0.00 | K26: 7.90 | L26: 0.00 | M26: 0.00 | N26: 0.33
A27: Сыр твердый | B27: 15 | C27: 8.99 | D27: 8.95 | E27: 0.00 | F27: 91.69 | G27: 0.41 | H27: 0.00 | I27: 0.15 | J27: 0.06 | K27: 270.00 | L27: 395.00 | M27: 11.00 | N27: 0.11
A28: Фрукты свежие (груша)1шт. | B28: 120 | C28: 2.50 | D28: 2.50 | E28: 21.80 | F28: 96.40 | G28: 0.02 | H28: 9.60 | I28: 0.20 | J28: 0.48 | K28: 32.80 | L28: 19.20 | M28: 44.40 | N28: 2.76
A29: Обед
A30: Борщ с капустой и картофелем | B30: 300/7 | C30: 15.84 | D30: 5.12 | E30: 34.92 | F30: 318.76 | G30: 0.06 | H30: 19.41 | I30: 0.15 | J30: 4.97 | K30: 56.61 | L30: 96.42 | M30: 60.75 | N30: 0.32
A31: Мясо птицы тушеное в соусе | B31: 100 | C31: 10.12 | D31: 11.78 | E31: 2.93 | F31: 150.00 | G31: 0.05 | H31: 7.44 | I31: 0.04 | J31: 0.96 | K31: 48.90 | L31: 90.50 | M31: 13.14 | N31: 0.91
A32: Макароны отварные | B32: 180 | C32: 0.90 | D32: 7.54 | E32: 42.56 | F32: 208.40 | G32: 0.08 | H32: 0.00 | I32: 0.00 | J32: 1.04 | K32: 24.92 | L32: 89.56 | M32: 11.50 | N32: 1.14
A33: Компот из смеси сухофруктов | B33: 200 | C33: 0.16 | D33: 3.16 | E33: 27.88 | F33: 114.60 | G33: 0.02 | H33: 0.90 | I33: 0.00 | J33: 0.08 | K33: 24.18 | L33: 4.40 | M33: 5.14 | N33: 0.96
A34: Хлеб ржано-пшеничный | B34: 30 | C34: 0.44 | D34: 2.24 | E34: 0.96 | F34: 91.96 | G34: 0.04 | H34: 0.00 | I34: 0.00 | J34: 0.36 | K34: 10.20 | L34: 42.40 | M34: 10.00 | N34: 1.24
A35: Итого за день | C35: =SUM(C24:C34) -> 51.33 | D35: =SUM(D24:D34) -> 52.58 | E35: =SUM(E24:E34) -> 200.00 | F35: =SUM(F24:F34) -> 1557.77 | G35: =SUM(G24:G34) -> 0.83 | H35: 42.25 | I35: 0.54 | J35: 7.95 | K35: 829.53 | L35: 1083.78 | M35: 194.63 | N35: 10.19
A37: День 3. (Среда)
A39: Наименование блюда | B39: Масса порции,г | C39: Пищевые вещества,г | F39: Энергетическая ценность,ккал | G39: Витамины, мг | K39: Минеральные вещества, мг
C40: жиры | D40: белки | E40: углеводы | G40: В1 | H40: С | I40: А | J40: Е | K40: Ca | L40: P | M40: Mg | N40: Fe
A41: Завтрак
A42: Каша рисовая молочная | B42: 200 | C42: 20.60 | D42: 17.06 | E42: 3.62 | F42: 262.86 | G42: 0.20 | H42: 0.28 | I42: 0.00 | J42: 0.00 | K42: 327.42 | L42: 248.96 | M42: 0.00 | N42: 4.72
A43: Чай с молоком | B43: 200 | C43: 1.26 | D43: 1.42 | E43: 34.80 | F43: 75.34 | G43: 0.04 | H43: 1.24 | I43: 0.00 | J43: 0.00 | K43: 217.76 | L43: 0.00 | M43: 0.00 | N43: 0.38
A44: Хлеб пшеничный | B44: 30 | C44: 0.30 | D44: 2.37 | E44: 0.63 | F44: 70.14 | G44: 0.03 | H44: 0.00 | I44: 0.00 | J44: 0.00 | K44: 6.90 | L44: 0.00 | M44: 0.00 | N44: 0.33
A45: Фрукты (бананы) | B45: 170 | C45: 0.60 | D45: 1.80 | E45: 55.20 | F45: 215.20 | G45: 0.00 | H45: 24.79 | I45: 0.31 | J45: 0.17 | K45: 8.50 | L45: 217.40 | M45: 45.90 | N45: 0.51
A46: Обед
A47: Винегрет овощной | B47: 100 | C47: 5.03 | D47: 0.83 | E47: 1.84 | F47: 56.00 | G47: 0.45 | H47: 17.08 | I47: 0.00 | J47: 1.45 | K47: 73.96 | L47: 193.22 | M47: 23.92 | N47: 0.64
A48: Суп-лапша с мясом птицы | B48: 250/10 | C48: 5.07 | D48: 2.37 | E48: 23.00 | F48: 117.00 | G48: 0.05 | H48: 0.95 | I48: 0.00 | J48: 4.63 | K48: 87.30 | L48: 86.78 | M48: 25.23 | N48: 0.73
A49: Отбивная из куриных грудок | B49: 100 | C49: 9.20 | D49: 17.50 | E49: 0.10 | F49: 102.43 | G49: 0.05 | H49: 0.37 | I49: 0.30 | J49: 0.41 | K49: 21.50 | L49: 115.58 | M49: 25.00 | N49: 0.62
A50: Рис с овощами | B50: 180 | C50: 7.16 | D50: 4.86 | E50: 78.92 | F50: 379.60 | G50: 0.04 | H50: 0.00 | I50: 0.00 | J50: 0.38 | K50: 1.82 | L50: 181.26 | M50: 21.78 | N50: 0.70
A51: Кисель плодово-ягодный | B51: 200 | C51: 0.16 | D51: 0.44 | E51: 28.20 | F51: 116.60 | G51: 0.00 | H51: 2.70 | I51: 0.00 | J51: 0.12 | K51: 20.56 | L51: 11.20 | M51: 31.06 | N51: 0.80
A52: Хлеб ржано-пшеничный | B52: 30 | C52: 0.44 | D52: 2.24 | E52: 0.96 | F52: 91.96 | G52: 0.04 | H52: 0.00 | I52: 0.00 | J52: 0.36 | K52: 9.20 | L52: 42.40 | M52: 10.00 | N52: 1.24
A53: Итого за день | C53: =SUM(C42:C52) -> 49.82 | D53: =SUM(D42:D52) -> 50.89 | E53: =SUM(E42:E52) -> 227.27 | F53: =SUM(F42:F52) -> 1487.13 | G53: 0.90 | H53: 47.41 | I53: 0.61 | J53: 7.52 | K53: 774.92 | L53: 1096.80 | M53: 182.89 | N53: 10.67
A55: День 4. (Четверг)
A57: Наименование блюда | B57: Масса порции,г | C57: Пищевые вещества,г | F57: Энергетическая ценность,ккал | G57: Витамины, мг | K57: Минеральные вещества, мг
C58: жиры | D58: белки | E58: углеводы | G58: В1 | H58: С | I58: А | J58: Е | K58: Ca | L58: P | M58: Mg | N58: Fe
A59: Завтрак
A60: Каша вязкая молочная из хлопьев "Геркулес" | B60: 200 | C60: 10.06 | D60: 14.86 | E60: 49.36 | F60: 320.00 | G60: 0.12 | H60: 0.88 | I60: 0.00 | J60: 0.00 | K60: 333.70 | L60: 0.00 | M60: 18.10 | N60: 2.16
A61: Напиток лимонный | B61: 200 | C61: 0.02 | D61: 0.12 | E61: 23.70 | F61: 55.86 | G61: 0.00 | H61: 2.54 | I61: 0.00 | J61: 0.00 | K61: 12.80 | L61: 0.00 | M61: 0.00 | N61: 0.32
A62: Печенье | B62: 30 | C62: 8.25 | D62: 1.08 | E62: 0.13 | F62: 96.00 | G62: 0.00 | H62: 0.00 | I62: 0.00 | J62: 0.00 | K62: 2.40 | L62: 0.00 | M62: 0.00 | N62: 0.02
A63: Хлеб пшеничный | B63: 30 | C63: 0.30 | D63: 2.37 | E63: 0.63 | F63: 70.14 | G63: 0.03 | H63: 0.00 | I63: 0.00 | J63: 0.00 | K63: 6.90 | L63: 0.00 | M63: 0.00 | N63: 0.33
A64: Фрукты свежие 1шт. | B64: 100 | C64: 0.20 | D64: 0.90 | E64: 10.10 | F64: 86.40 | G64: 0.04 | H64: 30.00 | I64: 0.08 | J64: 0.20 | K64: 34.00 | L64: 0.00 | M64: 26.00 | N64: 0.30
A65: Обед
A66: Салат из свеклы с изюмом | B66: 100 | C66: 4.91 | D66: 2.08 | E66: 26.74 | F66: 98.11 | G66: 0.01 | H66: 0.55 | I66: 0.02 | J66: 0.54 | K66: 46.54 | L66: 96.36 | M66: 49.30 | N66: 0.54
A67: Щи из свежей капусты | B67: 250/5 | C67: 1.23 | D67: 6.22 | E67: 11.85 | F67: 80.59 | G67: 0.27 | H67: 20.56 | I67: 0.04 | J67: 0.24 | K67: 30.31 | L67: 0.62 | M67: 0.06 | N67: 2.07
A68: Печень по-строгановски | B68: 80/40 | C68: 16.81 | D68: 18.30 | E68: 23.37 | F68: 252.22 | G68: 0.26 | H68: 14.16 | I68: 0.62 | J68: 6.25 | K68: 139.55 | L68: 701.10 | M68: 43.58 | N68: 2.49
A69: Картофельное пюре | B69: 200 | C69: 9.86 | D69: 4.12 | E69: 36.13 | F69: 384.60 | G69: 0.15 | H69: 6.94 | I69: 0.05 | J69: 0.47 | K69: 98.57 | L69: 230.20 | M69: 42.62 | N69: 0.33
A70: Чай | B70: 200 | C70: 0.02 | D70: 0.06 | E70: 13.96 | F70: 55.82 | G70: 0.00 | H70: 0.02 | I70: 0.00 | J70: 0.00 | K70: 10.32 | L70: 0.00 | M70: 0.00 | N70: 0.26
A71: Хлеб ржано-пшеничный | B71: 30 | C71: 0.44 | D71: 2.24 | E71: 0.96 | F71: 91.96 | G71: 0.04 | H71: 0.00 | I71: 0.00 | J71: 0.36 | K71: 9.20 | L71: 84.80 | M71: 10.00 | N71: 1.24
A72: Итого за день | C72: =SUM(C60:C71) -> 52.10 | D72: =SUM(D60:D71) -> 52.35 | E72: =SUM(E60:E71) -> 196.93 | F72: =SUM(F60:F71) -> 1591.70 | G72: 0.92 | H72: 75.65 | I72: 0.81 | J72: 8.06 | K72: 724.29 | L72: 1113.08 | M72: 189.66 | N72: 10.06
A74: День 5. (Пятница)
A76: Наименование блюда | B76: Масса порции,г | C76: Пищевые вещества,г | F76: Энергетическая ценность,ккал | G76: Витамины, мг | K76: Минеральные вещества, мг
C77: жиры | D77: белки | E77: углеводы | G77: В1 | H77: С | I77: А | J77: Е | K77: Ca | L77: P | M77: Mg | N77: Fe
A78: Завтрак
A79: Сырники из творога со сметаной | B79: 200/10 | C79: 8.48 | D79: 14.68 | E79: 30.88 | F79: 297.05 | G79: 0.06 | H79: 0.10 | I79: 0.06 | J79: 0.89 | K79: 455.30 | L79: 429.60 | M79: 28.96 | N79: 0.48
A80: Компот из смеси сухофруктов | B80: 200 | C80: 0.16 | D80: 0.16 | E80: 25.76 | F80: 114.60 | G80: 0.04 | H80: 0.90 | I80: 0.00 | J80: 0.08 | K80: 14.18 | L80: 8.80 | M80: 10.28 | N80: 1.92
A81: Хлеб пшеничный | B81: 30 | C81: 0.30 | D81: 2.37 | E81: 0.63 | F81: 70.14 | G81: 0.05 | H81: 0.00 | I81: 0.00 | J81: 0.00 | K81: 6.90 | L81: 0.00 | M81: 0.00 | N81: 0.66
A82: Фрукты свежие (апельсины)1шт. | B82: 100 | C82: 0.20 | D82: 0.90 | E82: 16.20 | F82: 56.40 | G82: 0.08 | H82: 30.00 | I82: 0.08 | J82: 0.20 | K82: 34.00 | L82: 0.00 | M82: 13.00 | N82: 0.30
A83: Кекс | B83: 50 | C83: 11.80 | D83: 2.73 | E83: 20.70 | F83: 120.00 | G83: 0.01 | H83: 0.23 | I83: 0.00 | J83: 0.00 | K83: 176.00 | L83: 0.00 | M83: 0.00 | N83: 0.20
A84: Обед
A85: Салат из свежей капусты,помид.и огурцов | B85: 100 | C85: 5.56 | D85: 2.01 | E85: 9.66 | F85: 76.49 | G85: 0.08 | H85: 23.29 | I85: 0.36 | J85: 3.26 | K85: 88.57 | L85: 95.04 | M85: 30.66 | N85: 3.44
A86: Борщ с капустой и картофелем | B86: 300/7 | C86: 5.84 | D86: 2.12 | E86: 29.84 | F86: 218.76 | G86: 0.12 | H86: 9.41 | I86: 0.03 | J86: 0.97 | K86: 46.61 | L86: 92.84 | M86: 21.50 | N86: 0.64
A87: Жаркое по-домашнему | B87: 250 | C87: 20.95 | D87: 19.39 | E87: 54.96 | F87: 410.16 | G87: 0.36 | H87: 3.58 | I87: 0.10 | J87: 3.91 | K87: 39.33 | L87: 406.80 | M87: 70.89 | N87: 1.03
A88: Чай | B88: 200 | C88: 0.02 | D88: 0.06 | E88: 13.96 | F88: 55.82 | G88: 0.00 | H88: 0.02 | I88: 0.00 | J88: 0.00 | K88: 10.32 | L88: 0.00 | M88: 0.00 | N88: 0.26
A89: Хлеб ржано-пшеничный | B89: 30 | C89: 0.44 | D89: 2.24 | E89: 0.96 | F89: 91.96 | G89: 0.04 | H89: 0.00 | I89: 0.00 | J89: 0.36 | K89: 9.20 | L89: 42.40 | M89: 10.00 | N89: 1.24
A90: Итого за день | C90: =SUM(C79:C89) -> 53.75 | D90: =SUM(D79:D89) -> 46.66 | E90: =SUM(E79:E89) -> 203.55 | F90: =SUM(F79:F89) -> 1511.38 | G90: =SUM(G79:G89) -> 0.84 | H90: 67.53 | I90: 0.63 | J90: 9.67 | K90: 880.41 | L90: 1075.48 | M90: 185.29 | N90: 10.17
A92: День 6. (Понедельник)
A94: Наименование блюда | B94: Масса порции,г | C94: Пищевые вещества,г | F94: Энергетическая ценность,ккал | G94: Витамины, мг | K94: Минеральные вещества, мг
C95: жиры | D95: белки | E95: углеводы | G95: В1 | H95: С | I95: А | J95: Е | K95: Ca | L95: P | M95: Mg | N95: Fe
A96: Завтрак
A97: Омлет с сосисками | B97: 180/20 | C97: 13.26 | D97: 20.48 | E97: 52.64 | F97: 451.42 | G97: 0.28 | H97: 0.88 | I97: 0.12 | J97: 0.88 | K97: 362.88 | L97: 601.62 | M97: 83.98 | N97: 1.62
A98: Масло сливочное | B98: 10 | C98: 7.25 | D98: 0.08 | E98: 0.13 | F98: 56.00 | G98: 0.00 | H98: 0.00 | I98: 0.00 | J98: 0.00 | K98: 2.40 | L98: 0.00 | M98: 0.00 | N98: 0.02
A99: Чай с молоком | B99: 200 | C99: 0.02 | D99: 0.12 | E99: 13.70 | F99: 55.86 | G99: 0.00 | H99: 2.54 | I99: 0.00 | J99: 0.00 | K99: 12.80 | L99: 0.00 | M99: 0.00 | N99: 0.32
A100: Хлеб пшеничный | B100: 30 | C100: 0.30 | D100: 2.37 | E100: 0.63 | F100: 60.14 | G100: 0.03 | H100: 0.00 | I100: 0.00 | J100: 0.00 | K100: 6.90 | L100: 0.00 | M100: 0.00 | N100: 0.33
A101: Фрукты свежие (яблоки)1шт. | B101: 110 | C101: 0.45 | D101: 0.45 | E101: 21.60 | F101: 51.70 | G101: 0.00 | H101: 5.06 | I101: 0.30 | J101: 0.22 | K101: 6.60 | L101: 12.10 | M101: 5.50 | N101: 0.11
A102: Обед
A103: Овощное рагу | B103: 250 | C103: 21.63 | D103: 13.38 | E103: 42.76 | F103: 430.48 | G103: 0.24 | H103: 29.82 | I103: 0.08 | J103: 3.82 | K103: 70.78 | L103: 85.72 | M103: 60.98 | N103: 1.14
A104: Суп-лапша с мясом | B104: 250/10 | C104: 5.07 | D104: 2.37 | E104: 13.00 | F104: 117.00 | G104: 0.05 | H104: 0.95 | I104: 0.00 | J104: 4.63 | K104: 87.30 | L104: 86.78 | M104: 25.23 | N104: 0.73
A105: Котлеты рыбные | B105: 120 | C105: 5.25 | D105: 10.67 | E105: 44.20 | F105: 252.38 | G105: 0.16 | H105: 0.76 | I105: 0.02 | J105: 2.93 | K105: 25.71 | L105: 330.48 | M105: 23.71 | N105: 0.86
A106: Йогурт | B106: 200 | C106: 1.84 | D106: 3.20 | E106: 9.60 | F106: 68.00 | G106: 0.09 | H106: 3.96 | I106: 0.01 | J106: 0.00 | K106: 223.04 | L106: 15.79 | M106: 15.56 | N106: 4.56
A107: Какао | B107: 200 | C107: 0.01 | D107: 0.04 | E107: 13.96 | F107: 35.82 | G107: 0.00 | H107: 0.02 | I107: 0.00 | J107: 0.00 | K107: 10.32 | L107: 0.00 | M107: 0.00 | N107: 0.26
A108: Хлеб ржано-пшеничный | B108: 30 | C108: 0.44 | D108: 2.24 | E108: 0.96 | F108: 91.96 | G108: 0.04 | H108: 0.00 | I108: 0.00 | J108: 0.36 | K108: 9.20 | L108: 42.40 | M108: 10.00 | N108: 1.24
A109: Итого за день | C109: =SUM(C97:C108) -> 55.52 | D109: =SUM(D97:D108) -> 55.40 | E109: =SUM(E97:E108) -> 213.18 | F109: =SUM(F97:F108) -> 1670.76 | G109: =SUM(G97:G108) -> 0.89 | H109: 43.99 | I109: 0.53 | J109: 12.84 | K109: 817.93 | L109: 1174.89 | M109: =SUM(M97:M108) -> 224.96 | N109: 11.19
A111: День 7. (Вторник)
A113: Наименование блюда | B113: Масса порции,г | C113: Пищевые вещества,г | F113: Энергетическая ценность,ккал | G113: Витамины, мг | K113: Минеральные вещества, мг
C114: жиры | D114: белки | E114: углеводы | G114: В1 | H114: С | I114: А | J114: Е | K114: Ca | L114: P | M114: Mg | N114: Fe
A115: Завтрак
A116: Каша овсяная жидкая | B116: 200 | C116: 11.52 | D116: 9.00 | E116: 33.62 | F116: 322.40 | G116: 0.28 | H116: 0.97 | I116: 0.01 | J116: 0.82 | K116: 256.20 | L116: 322.90 | M116: 52.74 | N116: 0.64
A117: Сыр твердый | B117: 15 | C117: 3.99 | D117: 5.95 | E117: 0.00 | F117: 102.69 | G117: 0.22 | H117: 0.00 | I117: 0.04 | J117: 0.06 | K117: 170.00 | L117: 190.00 | M117: 22.00 | N117: 0.11
A118: Чай | B118: 200 | C118: 1.26 | D118: 1.42 | E118: 29.60 | F118: 75.34 | G118: 0.04 | H118: 2.48 | I118: 0.00 | J118: 0.00 | K118: 117.76 | L118: 0.00 | M118: 0.00 | N118: 0.38
A119: Хлеб пшеничный | B119: 30 | C119: 0.30 | D119: 2.37 | E119: 0.63 | F119: 70.14 | G119: 0.03 | H119: 0.00 | I119: 0.00 | J119: 0.00 | K119: 6.90 | L119: 0.00 | M119: 0.00 | N119: 0.33
A120: Фрукты свежие (груша)1шт. | B120: 110 | C120: 0.45 | D120: 2.45 | E120: 21.60 | F120: 71.70 | G120: 0.02 | H120: 11.00 | I120: 0.02 | J120: 0.44 | K120: 20.90 | L120: 17.60 | M120: 13.20 | N120: 7.05
A121: Обед
A122: Салат из сырых овощей | B122: 100 | C122: 6.93 | D122: 5.67 | E122: 8.48 | F122: 145.38 | G122: 0.03 | H122: 11.07 | I122: 0.29 | J122: 0.92 | K122: 27.84 | L122: 54.44 | M122: 25.56 | N122: 0.22
A123: Суп крестьянский с крупой | B123: 250/10 | C123: 6.92 | D123: 2.29 | E123: 23.90 | F123: 138.86 | G123: 0.03 | H123: 5.90 | I123: 0.02 | J123: 2.83 | K123: 37.10 | L123: 105.64 | M123: 19.04 | N123: 0.25
A124: Рыба тушенная с овощами | B124: 120 | C124: 14.27 | D124: 13.67 | E124: 13.44 | F124: 240.27 | G124: 0.09 | H124: 9.69 | I124: 0.09 | J124: 2.93 | K124: 96.50 | L124: 230.60 | M124: 38.42 | N124: 0.41
A125: Картофель отварной с маслом | B125: 200/7 | C125: 4.16 | D125: 7.75 | E125: 53.72 | F125: 162.07 | G125: 0.12 | H125: 1.65 | I125: 0.03 | J125: 0.85 | K125: 27.21 | L125: 97.83 | M125: 15.50 | N125: 0.51
A126: Кофейный напиток | B126: 200 | C126: 0.02 | D126: 0.06 | E126: 23.96 | F126: 55.82 | G126: 0.00 | H126: 0.02 | I126: 0.00 | J126: 0.00 | K126: 10.32 | L126: 0.00 | M126: 0.00 | N126: 0.26
A127: Хлеб ржано-пшеничный | B127: 30 | C127: 0.44 | D127: 2.24 | E127: 0.96 | F127: 91.96 | G127: 0.04 | H127: 0.00 | I127: 0.00 | J127: 0.36 | K127: 9.20 | L127: 42.40 | M127: 10.00 | N127: 1.24
A128: Итого за день | C128: =SUM(C116:C127) -> 50.26 | D128: =SUM(D116:D127) -> 52.87 | E128: =SUM(E116:E127) -> 209.91 | F128: =SUM(F116:F127) -> 1476.63 | G128: =SUM(G116:G127) -> 0.90 | H128: 42.78 | I128: 0.50 | J128: 9.21 | K128: 779.93 | L128: 1061.41 | M128: 196.46 | N128: 11.40
A130: День 8. (Среда)
A132: Наименование блюда | B132: Масса порции,г | C132: Пищевые вещества,г | F132: Энергетическая ценность,ккал | G132: Витамины, мг | K132: Минеральные вещества, мг
C133: жиры | D133: белки | E133: углеводы | G133: В1 | H133: С | I133: А | J133: Е | K133: Ca | L133: P | M133: Mg | N133: Fe
A134: Завтрак
A135: Вареники ленивые | B135: 200/5 | C135: 17.29 | D135: 18.95 | E135: 29.12 | F135: 438.30 | G135: 0.19 | H135: 0.67 | I135: 0.12 | J135: 0.77 | K135: 334.40 | L135: 333.40 | M135: 25.48 | N135: 0.51
A136: Компот из смеси сухофруктов | B136: 200 | C136: 0.16 | D136: 0.16 | E136: 35.76 | F136: 114.60 | G136: 0.02 | H136: 0.90 | I136: 0.00 | J136: 0.08 | K136: 28.18 | L136: 8.40 | M136: 5.14 | N136: 0.96
A137: Хлеб пшеничный | B137: 30 | C137: 0.30 | D137: 2.37 | E137: 0.63 | F137: 70.14 | G137: 0.03 | H137: 0.00 | I137: 0.00 | J137: 0.00 | K137: 6.90 | L137: 0.00 | M137: 0.00 | N137: 0.33
A138: Фрукты (бананы) | B138: 120 | C138: 0.42 | D138: 1.27 | E138: 17.78 | F138: 81.32 | G138: 0.00 | H138: 10.44 | I138: 0.30 | J138: 0.12 | K138: 6.00 | L138: 26.40 | M138: 32.40 | N138: 0.36
A139: Обед
A140: Салат из свежих огурцов | B140: 100 | C140: 5.00 | D140: 0.84 | E140: 9.38 | F140: 60.55 | G140: 0.03 | H140: 10.41 | I140: 0.08 | J140: 1.61 | K140: 57.62 | L140: 83.96 | M140: 9.17 | N140: 2.30
A141: Суп картофельный с мясными фрикадельками | B141: 250/24 | C141: 2.78 | D141: 2.20 | E141: 50.80 | F141: 106.00 | G141: 0.23 | H141: 13.08 | I141: 0.00 | J141: 1.28 | K141: 59.40 | L141: 93.23 | M141: 29.68 | N141: 1.15
A142: Макароны с сыром | B142: 200 | C142: 10.02 | D142: 10.67 | E142: 23.44 | F142: 270.27 | G142: 0.29 | H142: 9.69 | I142: 0.08 | J142: 2.93 | K142: 193.02 | L142: 215.30 | M142: 19.21 | N142: 0.41
A143: Котлеты из мяса говядины | B143: 100 | C143: 14.00 | D143: 15.00 | E143: 26.04 | F143: 312.73 | G143: 0.07 | H143: 0.31 | I143: 0.04 | J143: 1.24 | K143: 78.44 | L143: 271.64 | M143: 50.71 | N143: 2.55
A144: Чай | B144: 200 | C144: 0.02 | D144: 0.06 | E144: 13.96 | F144: 55.82 | G144: 0.00 | H144: 0.02 | I144: 0.00 | J144: 0.00 | K144: 10.32 | L144: 0.00 | M144: 0.00 | N144: 0.26
A145: Хлеб ржано-пшеничный | B145: 30 | C145: 0.44 | D145: 2.24 | E145: 0.96 | F145: 91.96 | G145: 0.04 | H145: 0.00 | I145: 0.00 | J145: 0.36 | K145: 9.20 | L145: 42.40 | M145: 10.00 | N145: 1.24
A146: Итого за день | C146: =SUM(C135:C145) -> 50.43 | D146: =SUM(D135:D145) -> 53.76 | E146: =SUM(E140:E145) -> 124.58 | F146: =SUM(F135:F145) -> 1601.69 | G146: 0.90 | H146: 45.52 | I146: 0.62 | J146: 8.39 | K146: 783.48 | L146: 1074.73 | M146: 181.79 | N146: 10.07
A148: День 9. (Четверг)
A150: Наименование блюда | B150: Масса порции,г | C150: Пищевые вещества,г | F150: Энергетическая ценность,ккал | G150: Витамины, мг | K150: Минеральные вещества, мг
C151: жиры | D151: белки | E151: углеводы | G151: В1 | H151: С | I151: А | J151: Е | K151: Ca | L151: P | M151: Mg | N151: Fe
A152: Завтрак
A153: Каша вязкая молочная из пшеной крупы | B153: 250 | C153: 10.06 | D153: 12.86 | E153: 58.72 | F153: 320.00 | G153: 0.24 | H153: 1.76 | I153: 0.20 | J153: 0.20 | K153: 233.70 | L153: 264.37 | M153: 15.25 | N153: 2.16
A154: Вафли | B154: 80 | C154: 5.90 | D154: 4.64 | E154: 20.42 | F154: 144.00 | G154: 0.01 | H154: 0.28 | I154: 0.00 | J154: 0.00 | K154: 276.00 | L154: 0.00 | M154: 0.00 | N154: 0.20
A155: Кофейный напиток | B155: 200 | C155: 2.68 | D155: 3.16 | E155: 15.94 | F155: 100.60 | G155: 0.04 | H155: 1.30 | I155: 0.02 | J155: 0.00 | K155: 125.78 | L155: 180.00 | M155: 14.00 | N155: 0.14
A156: Хлеб пшеничный | B156: 30 | C156: 0.30 | D156: 2.37 | E156: 0.63 | F156: 70.14 | G156: 0.03 | H156: 0.00 | I156: 0.00 | J156: 0.00 | K156: 6.90 | L156: 0.00 | M156: 0.00 | N156: 0.33
A157: Обед
A158: Салат из свежей моркови | B158: 100 | C158: 6.04 | D158: 3.09 | E158: 8.78 | F158: 93.90 | G158: 0.06 | H158: 26.42 | I158: 0.40 | J158: 2.10 | K158: 25.42 | L158: 106.86 | M158: 47.68 | N158: 0.66
A159: Борщ с мясом птицы | B159: 250/10 | C159: 4.93 | D159: 3.80 | E159: 21.82 | F159: 103.75 | G159: 0.05 | H159: 21.36 | I159: 0.00 | J159: 2.40 | K159: 49.73 | L159: 163.80 | M159: 52.26 | N159: 1.23
A160: Каша рассыпчатая гречневая | B160: 180 | C160: 7.12 | D160: 11.46 | E160: 51.52 | F160: 325.00 | G160: 0.28 | H160: 0.00 | I160: 0.00 | J160: 0.96 | K160: 19.76 | L160: 0.00 | M160: 0.00 | N160: 3.08
A161: Бифштекс | B161: 100 | C161: 12.55 | D161: 5.55 | E161: 0.25 | F161: 264.00 | G161: 0.09 | H161: 0.00 | I161: 0.02 | J161: 0.50 | K161: 18.50 | L161: 243.00 | M161: 30.00 | N161: 0.90
A162: Кисель плодово-ягодный | B162: 200 | C162: 0.16 | D162: 0.44 | E162: 28.20 | F162: 116.60 | G162: 0.00 | H162: 2.70 | I162: 0.00 | J162: 0.24 | K162: 20.56 | L162: 11.20 | M162: 11.06 | N162: 0.80
A163: Хлеб ржано-пшеничный | B163: 30 | C163: 0.44 | D163: 2.24 | E163: 0.96 | F163: 91.96 | G163: 0.04 | H163: 0.00 | I163: 0.00 | J163: 0.72 | K163: 9.20 | L163: 42.40 | M163: 10.00 | N163: 1.24
A164: Итого за день | C164: =SUM(C153:C163) -> 50.18 | D164: =SUM(D153:D163) -> 49.61 | E164: =SUM(E153:E163) -> 207.24 | F164: =SUM(F153:F163) -> 1629.95 | G164: 0.84 | H164: 53.82 | I164: 0.64 | J164: 7.12 | K164: 785.55 | L164: 1011.63 | M164: 180.25 | N164: 10.74
A166: День 10. (Пятница)
A168: Наименование блюда | B168: Масса порции,г | C168: Пищевые вещества,г | F168: Энергетическая ценность,ккал | G168: Витамины, мг | K168: Минеральные вещества, мг
C169: жиры | D169: белки | E169: углеводы | G169: В1 | H169: С | I169: А | J169: Е | K169: Ca | L169: P | M169: Mg | N169: Fe
A170: Завтрак
A171: Колбасные,мясные изделия запеч.в тесте | B171: 200 | C171: 18.47 | D171: 19.38 | E171: 63.78 | F171: 480.12 | G171: 0.02 | H171: 0.00 | I171: 0.07 | J171: 0.74 | K171: 28.12 | L171: 176.32 | M171: 7.68 | N171: 0.88
A172: Кофейный напиток с молоком | B172: 200 | C172: 2.68 | D172: 3.16 | E172: 15.94 | F172: 160.60 | G172: 0.04 | H172: 1.30 | I172: 0.02 | J172: 0.00 | K172: 125.78 | L172: 90.00 | M172: 14.00 | N172: 0.14
A173: Фрукты свежие (яблоки)1шт. | B173: 170 | C173: 0.45 | D173: 0.45 | E173: 10.80 | F173: 51.70 | G173: 0.00 | H173: 5.06 | I173: 0.30 | J173: 0.22 | K173: 6.60 | L173: 12.10 | M173: 5.50 | N173: 0.11
A174: Обед
A175: Салат из свеклы отварной | B175: 100 | C175: 12.01 | D175: 4.82 | E175: 16.52 | F175: 185.60 | G175: 0.04 | H175: 6.65 | I175: 0.00 | J175: 0.70 | K175: 70.92 | L175: 40.63 | M175: 20.70 | N175: 1.32
A176: Суп картофельный с фрикадельками | B176: 250 | C176: 2.27 | D176: 3.20 | E176: 40.80 | F176: 253.20 | G176: 0.20 | H176: 8.70 | I176: 0.06 | J176: 0.36 | K176: 50.80 | L176: 25.21 | M176: 6.25 | N176: 0.80
A177: Сложный овощ.гарнир (карт.,капуста туш.) | B177: 200 | C177: 6.65 | D177: 6.99 | E177: 36.52 | F177: 171.44 | G177: 0.26 | H177: 23.00 | I177: 0.01 | J177: 3.81 | K177: 365.20 | L177: 102.65 | M177: 29.26 | N177: 0.91
A178: Тефтели из говядины | B178: 100 | C178: 11.46 | D178: 14.39 | E178: 25.14 | F178: 210.95 | G178: 0.18 | H178: 3.62 | I178: 0.04 | J178: 2.75 | K178: 62.48 | L178: 165.00 | M178: 20.44 | N178: 0.75
A179: Чай | B179: 200 | C179: 0.02 | D179: 0.06 | E179: 13.96 | F179: 55.82 | G179: 0.00 | H179: 0.02 | I179: 0.00 | J179: 0.00 | K179: 10.32 | L179: 0.00 | M179: 0.00 | N179: 0.26
A180: Хлеб ржано-пшеничный | B180: 30 | C180: 0.44 | D180: 2.24 | E180: 0.96 | F180: 91.96 | G180: 0.04 | H180: 0.00 | I180: 0.00 | J180: 0.36 | K180: 9.20 | L180: 42.40 | M180: 10.00 | N180: 1.24
A181: Итого за день | B181: =SUM(B175:B180) -> 880 | C181: =SUM(C171:C180) -> 54.45 | D181: =SUM(D171:D180) -> 54.69 | E181: =SUM(E171:E180) -> 224.42 | F181: =SUM(F171:F180) -> 1661.39 | G181: 0.78 | H181: 48.35 | I181: 0.50 | J181: 8.94 | K181: 729.42 | L181: =SUM(L171:L180) -> 654.31 | M181: 113.83 | N181: 6.41
A184: Примечание: Поставщик продуктов питания определяется в ходе торгов

Sheet Лист2

Sheet Лист3
